bitfinex/quotes_BTCUSD_20241001
["timestamp","ask_amount","ask_price","bid_price","bid_amount"]
[1727790374495,0.479946,62722.0,62721.0,0.259436]
[1727790374697,0.479946,62722.0,62706.0,0.2390578]
[1727790374912,0.479946,62722.0,62721.0,0.001]
[1727790375141,0.479946,62722.0,62721.0,0.161436]
[1727790375384,0.479946,62722.0,62721.0,0.261436]
[1727790376348,0.159439,62720.0,62711.0,0.159459]
[1727790376610,0.9065038,62722.0,62701.0,0.0004]
[1727790376611,0.750046,62722.0,62717.0,0.318891]
[1727790376815,0.4783,62719.0,62718.0,0.159443]
[1727790377291,0.4783,62719.0,62718.0,0.161443]
[1727790377800,0.4783,62719.0,62718.0,0.159443]
[1727790379237,0.4783,62719.0,62718.0,0.259443]
[1727790379461,0.4783,62719.0,62718.0,2.7488448]
[1727790379694,0.4783,62719.0,62718.0,2.7558448]
[1727790380420,0.4783,62719.0,62718.0,2.80160848]
[1727790380421,0.382636,62719.0,62718.0,2.80160848]
[1727790380691,0.1827,62746.0,62734.0,0.357]
[1727790380909,0.0759,62757.0,62734.0,0.616403]
[1727790381139,0.1827,62759.0,62746.0,0.159372]
[1727790381378,0.1827,62759.0,62746.0,0.67876693]
[1727790381600,0.1827,62759.0,62746.0,0.379617]
[1727790381854,0.47811,62747.0,62746.0,0.379617]
[1727790382956,0.47811,62747.0,62746.0,0.159372]
[1727790383196,0.47811,62747.0,62742.0,0.318761]
[1727790383418,0.479756,62747.0,62746.0,0.159372]
[1727790384592,0.479756,62747.0,62746.0,1.689415]
[1727790384814,0.479756,62747.0,62746.0,1.1073688]
[1727790385040,0.479756,62747.0,62746.0,1.0923068]
[1727790385262,0.479756,62747.0,62746.0,0.9778168]
[1727790385793,0.479756,62747.0,62746.0,0.821359]
[1727790386017,0.479756,62747.0,62746.0,0.291322]
[1727790386498,0.479756,62747.0,62746.0,0.501607]
[1727790386811,0.479756,62747.0,62746.0,0.291322]
[1727790387073,0.479756,62747.0,62746.0,0.159372]
[1727790388288,0.479756,62747.0,62746.0,0.295052]
[1727790388771,0.479756,62747.0,62746.0,0.159372]
[1727790389497,0.479756,62747.0,62746.0,0.259372]
[1727790389979,0.479756,62747.0,62746.0,1.06414]
[1727790390222,0.479756,62747.0,62746.0,0.588487]
[1727790390727,0.479756,62747.0,62746.0,0.259372]
[1727790390965,0.479756,62747.0,62746.0,1.9724198]
[1727790391209,0.479756,62747.0,62746.0,2.0043698]
[1727790393108,0.479756,62747.0,62746.0,2.02746862]
[1727790393329,0.416008,62747.0,62746.0,2.03246862]
[1727790393581,0.416008,62747.0,62746.0,2.03446862]
[1727790393582,0.320386,62747.0,62746.0,2.03446862]
[1727790393804,0.320386,62747.0,62746.0,2.38246862]
[1727790394053,0.161016,62747.0,62746.0,2.38246862]
[1727790394272,0.161016,62747.0,62746.0,2.65682819]
[1727790394541,0.161016,62747.0,62746.0,2.65482819]
[1727790394754,0.161016,62747.0,62746.0,2.65682819]
[1727790394981,0.23508208,62761.0,62760.0,0.159337]
[1727790395209,0.23508208,62761.0,62760.0,0.72010437]
[1727790395435,0.23508208,62782.0,62762.0,0.031918]
[1727790395685,0.23508208,62782.0,62776.0,0.291182]
[1727790395952,0.23508208,62782.0,62776.0,2.76448857]
[1727790396195,0.44594,62777.0,62776.0,0.159296]
[1727790396437,0.44594,62777.0,62776.0,0.174296]
[1727790396655,0.44594,62777.0,62776.0,4.59613357]
[1727790396908,0.44594,62777.0,62776.0,2.71485332]
[1727790397164,0.44594,62777.0,62776.0,0.62542732]
[1727790397393,0.44594,62777.0,62776.0,1.13188512]
[1727790397623,0.44594,62777.0,62776.0,0.78188512]
[1727790397851,0.44594,62777.0,62776.0,0.72542732]
[1727790398073,0.44594,62777.0,62776.0,0.88188512]
[1727790398348,0.44594,62777.0,62776.0,1.23188512]
[1727790398574,0.44594,62777.0,62776.0,0.72542732]
[1727790398799,0.44594,62777.0,62776.0,0.88188512]
[1727790399067,0.001648,62785.0,62776.0,0.88188512]
[1727790399068,0.001648,62785.0,62784.0,0.259276]
[1727790399265,0.001648,62785.0,62784.0,3.32336437]
[1727790399524,0.001648,62785.0,62784.0,3.31836437]
[1727790399779,0.479468,62785.0,62784.0,3.31836437]
[1727790400437,0.479468,62785.0,62784.0,3.32336437]
[1727790400953,0.479468,62785.0,62784.0,2.0163258]
[1727790401193,0.479468,62785.0,62784.0,1.584439]
[1727790401432,0.479468,62785.0,62784.0,0.423032]
[1727790401889,0.479468,62785.0,62765.0,1.066]
[1727790402181,0.479468,62785.0,62781.0,0.23508208]
[1727790402437,0.23508208,62784.0,62773.0,0.159301]
[1727790402680,0.479468,62785.0,62775.0,0.318595]
[1727790402928,0.47782,62783.0,62779.0,0.159287]
[1727790403168,0.47782,62783.0,62779.0,0.159286]
[1727790403413,0.47782,62783.0,62782.0,0.159281]
[1727790403684,0.47782,62783.0,62775.0,0.1]
[1727790403888,0.47782,62783.0,62772.0,0.159306]
[1727790403889,0.3444578,62782.0,62772.0,0.159306]
[1727790404115,0.47782,62781.0,62773.0,0.23508208]
[1727790404364,0.47782,62781.0,62774.0,0.159299]
[1727790404604,0.47782,62781.0,62775.0,0.159298]
[1727790404852,0.47782,62781.0,62773.0,0.23508208]
[1727790404853,0.47782,62781.0,62777.0,0.159293]
[1727790405113,0.47782,62781.0,62772.0,0.318609]
[1727790405338,0.47782,62781.0,62775.0,0.159298]
[1727790405564,0.47782,62781.0,62770.0,0.318621]
[1727790405787,0.47782,62781.0,62774.0,0.23508208]
[1727790406020,0.47782,62781.0,62776.0,0.318592]
[1727790406337,0.47782,62781.0,62780.0,0.159286]
[1727790406790,0.47782,62781.0,62780.0,0.259286]
[1727790407008,0.479464,62781.0,62780.0,0.259286]
[1727790409388,0.479464,62781.0,62780.0,0.99230209]
[1727790409613,0.479464,62781.0,62780.0,0.677147]
[1727790410350,0.46766147,62781.0,62780.0,0.677147]
[1727790410593,0.46766147,62781.0,62780.0,0.423952]
[1727790410829,0.46766147,62781.0,62776.0,0.318592]
[1727790411091,0.46766147,62781.0,62757.0,0.015]
[1727790411092,0.3451578,62780.0,62774.0,0.318598]
[1727790411312,0.46601747,62779.0,62776.0,0.31859]
[1727790411615,0.46601747,62779.0,62758.0,0.318681]
[1727790411616,0.62247527,62779.0,62758.0,0.318681]
[1727790411808,0.46601747,62779.0,62778.0,0.159291]
[1727790412032,0.46601747,62779.0,62777.0,0.318588]
[1727790412257,0.46601747,62779.0,62778.0,0.159291]
[1727790412508,0.43770054,62779.0,62778.0,0.159291]
[1727790412971,0.43770054,62779.0,62778.0,0.39437308]
[1727790413204,0.43770054,62779.0,62778.0,0.159291]
[1727790413476,0.43770054,62779.0,62778.0,0.259291]
[1727790414157,0.38672559,62779.0,62778.0,1.20149657]
[1727790414398,0.37561412,62779.0,62778.0,0.259291]
[1727790415407,0.37561412,62779.0,62778.0,0.59798]
[1727790415628,0.37561412,62779.0,62778.0,0.522103]
[1727790415861,0.37561412,62779.0,62778.0,0.259291]
[1727790416560,0.57551412,62779.0,62778.0,0.259291]
[1727790417049,0.37561412,62779.0,62778.0,1.28745588]
[1727790417307,0.37561412,62779.0,62778.0,1.0081988]
[1727790417545,0.37561412,62779.0,62778.0,1.0401488]
[1727790418296,0.37561412,62779.0,62778.0,0.291241]
[1727790418527,0.37561412,62779.0,62778.0,0.398761]
[1727790419241,0.37561412,62779.0,62778.0,0.259291]
[1727790419713,0.37561412,62779.0,62778.0,1.785577]
[1727790419945,0.37561412,62779.0,62778.0,0.988774]
[1727790420216,0.57501412,62779.0,62778.0,0.259291]
[1727790420445,0.57501412,62779.0,62777.0,0.318588]
[1727790420446,0.57501412,62779.0,62776.0,0.000822]
[1727790420447,0.0777,62778.0,62776.0,0.000822]
[1727790420716,0.2341578,62778.0,62767.0,0.159318]
[1727790420913,0.37561412,62777.0,62768.0,0.23508208]
[1727790421160,0.1564578,62776.0,62768.0,0.23508208]
[1727790421421,0.48852972,62775.0,62768.0,0.39439708]
[1727790421639,0.48852972,62775.0,62773.0,0.159302]
[1727790421895,0.48852972,62775.0,62763.0,0.318658]
[1727790421896,0.48852972,62775.0,62770.0,0.318622]
[1727790422133,0.48852972,62775.0,62771.0,0.159308]
[1727790422364,0.48852972,62775.0,62769.0,0.318628]
[1727790422591,0.33207192,62775.0,62774.0,0.159301]
[1727790422839,0.33207192,62775.0,62774.0,0.259301]
[1727790423117,0.33207192,62775.0,62764.0,0.04366909]
[1727790423118,0.54944691,62775.0,62752.0,0.35]
[1727790423341,0.54944691,62775.0,62761.0,0.23508208]
[1727790423342,0.27235957,62768.0,62761.0,0.23508208]
[1727790423570,0.3450578,62767.0,62754.0,0.318704]
[1727790423825,0.3450578,62767.0,62760.0,0.23508208]
[1727790423826,0.5043778,62767.0,62760.0,0.23508208]
[1727790424342,0.27235957,62758.0,62744.0,0.02340109]
[1727790424349,0.1934,62757.0,62744.0,0.02340109]
[1727790424591,0.1934,62757.0,62741.0,0.39446608]
[1727790424592,0.27235957,62751.0,62750.0,0.23508208]
[1727790424818,0.27235957,62751.0,62742.0,0.159382]
[1727790424819,0.42881737,62751.0,62742.0,0.159382]
[1727790425057,0.23508208,62748.0,62728.0,0.23508208]
[1727790425289,0.27235957,62743.0,62737.0,0.23508208]
[1727790425514,0.1945,62746.0,62733.0,0.318806]
[1727790425515,0.23508208,62745.0,62733.0,0.318806]
[1727790425775,0.1945,62746.0,62735.0,0.23508208]
[1727790426000,0.1945,62746.0,62728.0,0.23508208]
[1727790426001,0.1945,62746.0,62734.0,0.04366909]
[1727790426260,0.1945,62746.0,62739.0,0.318777]
[1727790426520,0.1945,62746.0,62725.0,0.318851]
[1727790426521,0.23508208,62740.0,62725.0,0.318851]
[1727790426748,0.1564578,62745.0,62739.0,0.159389]
[1727790426985,0.23508208,62742.0,62730.0,0.637644]
[1727790427240,0.1564578,62741.0,62726.0,0.23508208]
[1727790427480,0.1564578,62741.0,62735.0,0.318799]
[1727790427711,0.1564578,62741.0,62726.0,0.23508208]
[1727790427712,0.23508208,62740.0,62739.0,0.159388]
[1727790428104,0.3509578,62746.0,62740.0,0.159386]
[1727790428107,0.3509578,62746.0,62733.0,0.1]
[1727790428311,0.3509578,62746.0,62744.0,0.159376]
[1727790428488,0.3509578,62746.0,62727.0,0.33508208]
[1727790428718,0.33207192,62745.0,62740.0,0.159387]
[1727790428949,0.33207192,62745.0,62732.0,0.318812]
[1727790428950,0.23508208,62742.0,62732.0,0.1]
[1727790429200,0.3509578,62746.0,62732.0,0.1]
[1727790429201,0.33207192,62741.0,62740.0,0.159387]
[1727790429643,0.33207192,62741.0,62732.0,0.1]
[1727790429886,0.1564578,62740.0,62735.0,0.159399]
[1727790430128,0.1564578,62740.0,62737.0,0.159394]
[1727790430129,0.33207192,62739.0,62737.0,0.159394]
[1727790430337,0.33207192,62739.0,62738.0,0.159393]
[1727790430764,0.48852972,62739.0,62731.0,0.318816]
[1727790430999,0.1564578,62738.0,62731.0,0.159408]
[1727790431245,0.748154,62737.0,62725.0,0.1]
[1727790431457,0.748154,62737.0,62714.0,0.318905]
[1727790431458,0.1975,62727.0,62724.0,0.159428]
[1727790431701,0.33207192,62726.0,62720.0,0.159437]
[1727790431940,0.33207192,62726.0,62713.0,0.000823]
[1727790432423,0.33207192,62726.0,62725.0,0.159426]
[1727790435153,0.33207192,62726.0,62723.0,0.159429]
[1727790435378,0.23508208,62725.0,62723.0,0.15943]
[1727790435617,0.33207192,62724.0,62721.0,0.318871]
[1727790435847,0.33207192,62724.0,62723.0,0.159431]
[1727790436079,0.33207192,62724.0,62720.0,0.000822]
[1727790436530,0.33207192,62724.0,62723.0,0.159431]
[1727790436989,0.33207192,62724.0,62720.0,0.000822]
[1727790437521,0.33207192,62724.0,62720.0,0.319698]
[1727790437766,0.33207192,62724.0,62720.0,0.000822]
[1727790439347,0.42618659,62721.0,62720.0,0.000822]
[1727790439796,0.75825851,62721.0,62720.0,0.000822]
[1727790440229,0.75825851,62721.0,62720.0,0.16026]
[1727790440230,0.33207192,62721.0,62720.0,0.16026]
[1727790440482,0.33207192,62721.0,62720.0,0.000822]
[1727790441186,0.33207192,62721.0,62720.0,0.16026]
[1727790441409,0.33207192,62721.0,62720.0,0.000822]
[1727790443094,0.33207192,62721.0,62720.0,0.16026]
[1727790443372,0.33207192,62721.0,62720.0,0.4167178]
[1727790443629,0.33207192,62721.0,62720.0,0.26026]
[1727790447534,0.33207192,62721.0,62720.0,0.4167178]
[1727790447540,0.33207192,62721.0,62720.0,0.76989832]
[1727790447775,0.33207192,62721.0,62720.0,4.8301718]
[1727790448000,0.33207192,62721.0,62720.0,4.9818318]
[1727790448001,0.17263692,62721.0,62720.0,4.9818318]
[1727790448515,0.23508208,62735.0,62734.0,0.259403]
[1727790448827,0.23508208,62735.0,62734.0,5.00652539]
[1727790449048,0.47821,62735.0,62734.0,5.00652539]
[1727790449281,0.23508208,62748.0,62747.0,0.50937]
[1727790449501,0.71319208,62748.0,62747.0,1.22896439]
[1727790449749,0.47811,62748.0,62747.0,1.61007338]
[1727790449983,0.23508208,62756.0,62755.0,0.646299]
[1727790450221,0.23508208,62756.0,62755.0,4.20975938]
[1727790450464,0.71313208,62756.0,62755.0,0.8487838]
[1727790450680,0.47805,62756.0,62755.0,0.6076838]
[1727790451164,0.46178615,62756.0,62755.0,0.9046218]
[1727790451619,0.46178615,62756.0,62755.0,0.4158068]
[1727790452055,0.46178615,62756.0,62755.0,1.0792268]
[1727790452491,0.46178615,62756.0,62755.0,0.259349]
[1727790452738,0.46178615,62756.0,62755.0,0.61319379]
[1727790454587,0.46178615,62756.0,62755.0,0.41568979]
[1727790455118,0.46178615,62756.0,62755.0,0.25923199]
[1727790455340,0.46178615,62756.0,62755.0,0.89003179]
[1727790455579,0.46178615,62756.0,62755.0,0.96557674]
[1727790455797,0.46178615,62756.0,62755.0,0.95862674]
[1727790456022,0.46178615,62756.0,62755.0,0.91303179]
[1727790456501,0.46178615,62756.0,62755.0,0.41784299]
[1727790456698,0.46178615,62756.0,62755.0,0.46384199]
[1727790456946,0.46178615,62756.0,62755.0,0.25923199]
[1727790457376,0.46178615,62756.0,62755.0,0.25908445]
[1727790458029,0.46178615,62756.0,62755.0,0.41554225]
[1727790458516,0.26178615,62756.0,62755.0,0.41554225]
[1727790458997,0.26178615,62756.0,62755.0,0.25908445]
[1727790459244,0.26678615,62756.0,62755.0,0.160171]
[1727790459726,0.26843015,62756.0,62755.0,0.000822]
[1727790459976,0.26843015,62756.0,62730.0,0.005]
[1727790459977,0.47054657,62756.0,62733.0,0.23508208]
[1727790460271,0.47054657,62756.0,62755.0,0.159349]
[1727790460272,0.26843015,62756.0,62755.0,0.159349]
[1727790460768,0.1968,62742.0,62741.0,0.159385]
[1727790461023,0.1968,62742.0,62740.0,0.159387]
[1727790461024,0.005,62741.0,62740.0,0.159387]
[1727790461286,0.005,62741.0,62727.0,0.478258]
[1727790461289,0.005,62728.0,62727.0,0.478258]
[1727790461573,0.1865,62728.0,62727.0,0.478258]
[1727790461815,0.1865,62728.0,62720.0,0.000822]
[1727790461816,0.44828615,62728.0,62720.0,0.000822]
[1727790462061,0.005,62721.0,62720.0,0.16026]
[1727790462305,0.26678615,62721.0,62720.0,0.16026]
[1727790462788,0.26678615,62721.0,62720.0,0.000822]
[1727790463027,0.26678615,62721.0,62720.0,0.16026]
[1727790463952,0.30137477,62721.0,62720.0,0.000822]
[1727790464220,0.1944,62720.0,62715.0,0.000823]
[1727790464438,0.26178615,62719.0,62715.0,0.000823]
[1727790464685,0.164448,62716.0,62715.0,0.000823]
[1727790464909,0.58269195,62716.0,62715.0,0.000823]
[1727790465164,0.58269195,62716.0,62713.0,0.000823]
[1727790465165,0.164454,62714.0,62713.0,0.000823]
[1727790465382,0.42324395,62714.0,62713.0,0.000823]
[1727790466065,0.26678615,62714.0,62713.0,0.000823]
[1727790466335,0.26678615,62714.0,62713.0,0.160279]
[1727790467034,0.26678615,62714.0,62713.0,0.000823]
[1727790467280,0.42324395,62714.0,62713.0,0.000823]
[1727790467523,0.58269795,62714.0,62713.0,0.000823]
[1727790467995,0.42324395,62714.0,62713.0,0.000823]
[1727790468239,0.42324395,62714.0,62705.0,0.159476]
[1727790468479,0.42324395,62714.0,62703.0,0.318961]
[1727790468480,0.005,62704.0,62703.0,0.318961]
[1727790468699,0.005,62704.0,62703.0,0.159482]
[1727790468700,0.26678615,62704.0,62703.0,0.159482]
[1727790469721,0.26678615,62704.0,62700.0,0.319076]
[1727790469722,0.005,62702.0,62701.0,0.159884]
[1727790469967,0.005,62702.0,62701.0,0.0004]
[1727790469968,0.26678615,62702.0,62701.0,0.0004]
[1727790470219,0.65892795,62702.0,62701.0,0.0004]
[1727790470747,0.65892795,62702.0,62700.0,0.0001]
[1727790470748,0.49944395,62702.0,62700.0,0.0001]
[1727790470978,0.49944395,62702.0,62690.0,0.319027]
[1727790470979,0.1614578,62701.0,62690.0,0.319027]
[1727790471198,0.26178615,62700.0,62693.0,0.159507]
[1727790471441,0.005,62691.0,62690.0,0.478542]
[1727790471659,0.26678615,62691.0,62690.0,0.478542]
[1727790473331,0.26178615,62691.0,62690.0,0.478542]
[1727790473574,0.26178615,62691.0,62690.0,0.578542]
[1727790473805,0.26178615,62691.0,62690.0,0.77410536]
[1727790474037,0.26178615,62691.0,62690.0,1.5910948]
[1727790474509,0.26178615,62691.0,62690.0,1.6460448]
[1727790474751,0.26178615,62691.0,62690.0,1.4511658]
[1727790474976,0.26178615,62691.0,62690.0,1.54797136]
[1727790475219,0.26178615,62691.0,62690.0,1.51602136]
[1727790475438,0.26178615,62691.0,62690.0,1.4741658]
[1727790475667,0.26178615,62691.0,62690.0,1.4761658]
[1727790475958,0.26178615,62691.0,62690.0,1.5061158]
[1727790476401,0.26178615,62691.0,62690.0,1.4741658]
[1727790476672,0.23508208,62707.0,62690.0,1.4741658]
[1727790476673,0.23508208,62707.0,62706.0,0.159474]
[1727790476928,0.23508208,62707.0,62706.0,0.68822738]
[1727790477156,0.71350208,62707.0,62706.0,0.68822738]
[1727790477389,0.47842,62707.0,62706.0,0.68822738]
[1727790477876,0.47842,62707.0,62706.0,1.147642]
[1727790478119,0.47842,62707.0,62706.0,0.259474]
[1727790478367,0.48342,62707.0,62706.0,0.259474]
[1727790479080,0.48342,62707.0,62706.0,0.159474]
[1727790480276,0.005,62704.0,62702.0,0.1]
[1727790480510,0.005,62694.0,62693.0,0.159507]
[1727790480763,0.005,62694.0,62691.0,0.159511]
[1727790480764,0.005,62692.0,62691.0,0.159511]
[1727790481223,0.47842,62692.0,62691.0,1.17299506]
[1727790481459,0.47842,62692.0,62691.0,0.3159688]
[1727790481953,0.47842,62692.0,62691.0,0.74259506]
[1727790482455,0.47842,62692.0,62691.0,0.4159688]
[1727790483819,0.47842,62692.0,62691.0,0.259511]
[1727790483821,0.47842,62692.0,62688.0,0.319039]
[1727790483822,0.005,62689.0,62688.0,0.478559]
[1727790484266,0.005,62689.0,62686.0,0.319048]
[1727790484267,0.005,62688.0,62687.0,0.159521]
[1727790484775,0.48342,62688.0,62687.0,0.159521]
[1727790485299,0.005,62685.0,62684.0,0.478588]
[1727790485533,0.005,62685.0,62684.0,0.578588]
[1727790485534,0.48342,62685.0,62684.0,0.578588]
[1727790485757,0.48342,62685.0,62684.0,0.25953]
[1727790485981,0.48342,62685.0,62682.0,0.00082]
[1727790485982,0.005,62684.0,62682.0,0.00082]
[1727790486464,0.48342,62684.0,62682.0,0.00082]
[1727790486465,0.48342,62684.0,62683.0,0.160356]
[1727790486949,0.48342,62684.0,62683.0,0.000824]
[1727790487433,0.48342,62684.0,62681.0,0.0004]
[1727790487434,0.74302,62684.0,62681.0,0.0004]
[1727790487655,0.005,62682.0,62681.0,0.0004]
[1727790487880,0.642955,62682.0,62681.0,0.0004]
[1727790488126,0.005,62665.0,62659.0,0.000822]
[1727790488355,0.2033,62665.0,62661.0,0.24814008]
[1727790488579,0.68172,62665.0,62664.0,0.160403]
[1727790489574,0.164586,62662.0,62661.0,0.013058]
[1727790489813,0.164586,62662.0,62659.0,0.000822]
[1727790489814,0.164591,62660.0,62659.0,0.000822]
[1727790490057,0.7994688,62660.0,62659.0,0.000822]
[1727790490557,0.7994688,62660.0,62650.0,0.000822]
[1727790490559,0.2819,62651.0,62650.0,0.000822]
[1727790490807,0.2819,62651.0,62641.0,0.0004]
[1727790490808,0.005,62642.0,62641.0,0.0004]
[1727790491049,0.9798148,62642.0,62641.0,0.0004]
[1727790491292,0.8201778,62642.0,62641.0,0.0004]
[1727790491533,0.9798148,62642.0,62641.0,0.0004]
[1727790491773,0.9798148,62642.0,62632.0,0.160661]
[1727790491774,0.2011,62635.0,62632.0,0.001]
[1727790492016,0.2011,62635.0,62631.0,0.07768591]
[1727790492017,0.005,62632.0,62631.0,0.07768591]
[1727790492266,0.48342,62632.0,62631.0,0.23735091]
[1727790493004,0.47842,62632.0,62631.0,0.23735091]
[1727790493514,0.47842,62632.0,62631.0,2.29475071]
[1727790493744,0.47842,62632.0,62631.0,1.42517071]
[1727790494284,0.318755,62632.0,62631.0,2.05022071]
[1727790494529,0.296255,62632.0,62631.0,2.07322071]
[1727790494770,0.23508208,62642.0,62641.0,0.49395]
[1727790494771,0.13721836,62642.0,62641.0,0.49395]
[1727790495012,0.23508208,62667.0,62650.0,0.609616]
[1727790495260,0.005,62682.0,62665.0,0.159578]
[1727790495261,0.005,62666.0,62665.0,0.159578]
[1727790495505,0.23508208,62676.0,62665.0,0.159578]
[1727790495506,0.23508208,62669.0,62668.0,0.159571]
[1727790495752,0.23508208,62669.0,62667.0,1.32331]
[1727790495991,0.319145,62669.0,62668.0,0.71532926]
[1727790496236,0.319145,62669.0,62668.0,1.21343526]
[1727790496495,0.319145,62669.0,62668.0,1.60497514]
[1727790496749,0.319145,62669.0,62668.0,1.45526736]
[1727790496750,0.287231,62669.0,62668.0,1.45526736]
[1727790496990,0.287231,62669.0,62668.0,1.36989306]
[1727790497711,0.287231,62669.0,62668.0,1.90184306]
[1727790497962,0.287231,62669.0,62668.0,1.50184306]
[1727790498697,0.287231,62669.0,62668.0,1.0432668]
[1727790499147,0.302231,62669.0,62668.0,0.000822]
[1727790499152,0.302231,62669.0,62668.0,0.160393]
[1727790500117,0.302231,62669.0,62668.0,0.000822]
[1727790501842,0.390426,62669.0,62668.0,0.000822]
[1727790502322,0.005,62654.0,62653.0,0.159609]
[1727790502798,0.292231,62654.0,62653.0,0.259609]
[1727790503274,0.287231,62654.0,62653.0,0.834286]
[1727790503513,0.287231,62654.0,62653.0,0.9907438]
[1727790503776,0.287231,62654.0,62653.0,2.94407806]
[1727790504024,0.088195,62669.0,62653.0,2.94407806]
[1727790504025,0.083195,62669.0,62668.0,0.259571]
[1727790504277,0.083195,62669.0,62668.0,0.68619726]
[1727790504521,0.083195,62669.0,62668.0,4.19488426]
[1727790504769,0.23508208,62689.0,62682.0,0.1]
[1727790505020,0.23508208,62689.0,62688.0,0.25952]
[1727790505264,0.23508208,62689.0,62683.0,3.69133479]
[1727790505265,0.23508208,62689.0,62686.0,0.319049]
[1727790505518,0.001644,62692.0,62691.0,0.159512]
[1727790505767,0.001644,62692.0,62691.0,2.67725689]
[1727790506016,0.001644,62692.0,62691.0,2.5581288]
[1727790506489,0.480174,62692.0,62691.0,2.5581288]
[1727790507002,0.480174,62692.0,62691.0,2.5900788]
[1727790507239,0.480174,62692.0,62691.0,2.6581288]
[1727790508193,0.480174,62692.0,62691.0,1.9039808]
[1727790508730,0.480174,62692.0,62691.0,0.739348]
[1727790509217,0.480174,62692.0,62691.0,0.8958058]
[1727790509935,0.480174,62692.0,62691.0,0.9297558]
[1727790510398,0.480174,62692.0,62691.0,0.9277558]
[1727790510627,0.480174,62692.0,62691.0,0.8958058]
[1727790510864,0.480174,62692.0,62691.0,0.97381992]
[1727790511120,0.480174,62692.0,62691.0,0.95081992]
[1727790513484,0.480174,62692.0,62691.0,0.97581992]
[1727790513714,0.480174,62692.0,62691.0,0.97381992]
[1727790513963,0.480174,62692.0,62691.0,0.95081992]
[1727790514200,0.480174,62692.0,62691.0,0.91886992]
[1727790514681,0.480174,62692.0,62691.0,0.639348]
[1727790514913,0.480174,62692.0,62691.0,0.290692]
[1727790515142,0.480174,62692.0,62691.0,0.988651]
[1727790516548,0.480174,62692.0,62691.0,0.7062848]
[1727790517259,0.480174,62692.0,62691.0,0.371458]
[1727790517491,0.480174,62692.0,62691.0,0.259512]
[1727790517726,0.480174,62692.0,62691.0,1.3261388]
[1727790517962,0.480174,62692.0,62691.0,1.2785118]
[1727790518485,0.480174,62692.0,62691.0,0.9071678]
[1727790521379,0.480174,62692.0,62691.0,0.9710478]
[1727790522103,0.480174,62692.0,62691.0,0.4798498]
[1727790522332,0.480174,62692.0,62691.0,1.7195128]
[1727790523054,0.480174,62692.0,62691.0,1.7514628]
[1727790523520,0.480174,62692.0,62691.0,1.7195128]
[1727790523760,0.480174,62692.0,62691.0,1.1095878]
[1727790524510,0.480174,62692.0,62691.0,0.95313]
[1727790524765,0.480174,62692.0,62691.0,0.259512]
[1727790525046,0.480174,62692.0,62691.0,0.829633]
[1727790525269,0.480174,62692.0,62691.0,0.9860908]
[1727790525499,0.480174,62692.0,62691.0,1.0180408]
[1727790526879,0.480174,62692.0,62691.0,0.9180408]
[1727790527156,0.485174,62692.0,62691.0,0.4769948]
[1727790528121,0.746474,62692.0,62691.0,0.159512]
[1727790528623,0.480174,62692.0,62691.0,0.3159698]
[1727790529139,0.480174,62692.0,62691.0,1.8538378]
[1727790529386,0.480174,62692.0,62691.0,1.8142478]
[1727790529617,0.480174,62692.0,62691.0,1.3887478]
[1727790529849,0.480174,62692.0,62691.0,0.8836698]
[1727790530131,0.480174,62692.0,62691.0,0.7546698]
[1727790531302,0.480174,62692.0,62691.0,0.9145958]
[1727790531525,0.480174,62692.0,62691.0,0.28266188]
[1727790531753,0.480174,62692.0,62691.0,0.40535188]
[1727790531978,0.480174,62692.0,62691.0,0.43837688]
[1727790532508,0.480174,62692.0,62691.0,0.28266188]
[1727790533223,0.480174,62692.0,62691.0,1.32215968]
[1727790533472,0.3312431,62692.0,62691.0,4.27685068]
[1727790533694,0.3312431,62692.0,62691.0,4.27394142]
[1727790533920,0.3312431,62692.0,62691.0,4.47411468]
[1727790534141,0.3312431,62692.0,62691.0,4.50310893]
[1727790534377,0.3312431,62692.0,62691.0,4.11406393]
[1727790535356,0.3312431,62692.0,62691.0,3.99323993]
[1727790535598,0.3312431,62692.0,62691.0,3.99406193]
[1727790535828,0.3312431,62692.0,62691.0,4.01706193]
[1727790535829,0.3328871,62692.0,62691.0,4.01706193]
[1727790537237,0.3328871,62692.0,62691.0,1.72957493]
[1727790537693,0.3328871,62692.0,62691.0,1.70058068]
[1727790538152,0.3328871,62692.0,62691.0,1.68109868]
[1727790538620,0.3328871,62692.0,62691.0,1.11981188]
[1727790538896,0.3328871,62692.0,62691.0,0.160334]
[1727790538897,0.5236871,62692.0,62691.0,0.160334]
[1727790539370,0.6009871,62692.0,62691.0,0.000822]
[1727790539841,0.6009871,62692.0,62691.0,0.160334]
[1727790540096,0.6009871,62692.0,62691.0,0.000822]
[1727790540609,0.6009871,62692.0,62691.0,0.160334]
[1727790541394,0.5959871,62692.0,62691.0,0.6896708]
[1727790541628,0.3328871,62692.0,62691.0,0.7126708]
[1727790541853,0.3328871,62692.0,62691.0,4.4954518]
[1727790542127,0.3328871,62692.0,62691.0,4.5274018]
[1727790542380,0.1926,62706.0,62705.0,0.259476]
[1727790542612,0.23508208,62710.0,62709.0,0.259466]
[1727790543056,0.23508208,62710.0,62709.0,0.904092]
[1727790543290,0.24008208,62710.0,62709.0,0.159466]
[1727790543547,0.4834,62710.0,62708.0,0.318938]
[1727790543780,0.4834,62710.0,62699.0,0.1]
[1727790543781,0.005,62701.0,62700.0,0.1]
[1727790544038,0.4834,62701.0,62700.0,0.855419]
[1727790544506,0.4834,62701.0,62700.0,0.259489]
[1727790545466,0.46837377,62701.0,62700.0,0.259489]
[1727790545695,0.46337377,62701.0,62700.0,2.7288358]
[1727790545959,0.46837377,62701.0,62700.0,0.4159468]
[1727790546463,0.46337377,62701.0,62700.0,0.4159468]
[1727790546948,0.46337377,62701.0,62700.0,5.22016672]
[1727790546949,0.30388877,62701.0,62700.0,5.22016672]
[1727790547211,0.26882877,62701.0,62700.0,5.22216672]
[1727790547484,0.06261286,62718.0,62717.0,0.816396]
[1727790547729,0.23508208,62725.0,62724.0,0.314378]
[1727790547730,0.19483431,62725.0,62724.0,0.314378]
[1727790547960,0.1896,62741.0,62731.0,1.16436]